fUSD/lending_fUSD_20240414
["ID","MTS","AMOUNT","RATE_DAILY","PERIOD"]
[322617457,1713123801266,-699.01,0.00022459,2]
[322617458,1713123801293,-337.26,0.00022459,2]
[322617459,1713123801318,-1065.85,0.00022459,2]
[322617460,1713123801345,-1614.8,0.00022459,2]
[322617461,1713123801723,-1500.0,0.00022466,2]
[322617462,1713123801752,-464.04,0.0002249,2]
[322617463,1713123801778,-464.04,0.00022496,2]
[322617464,1713123801802,-464.04,0.00022501,2]
[322617465,1713123801826,-464.04,0.00022507,2]
[322617466,1713123801849,-386.32,0.0002251,2]
[322617467,1713123801874,-464.04,0.00022513,2]
[322617468,1713123801897,-464.04,0.00022519,2]
[322617469,1713123801924,-464.04,0.00022525,2]
[322617470,1713123801950,-464.04,0.00022531,2]
[322617471,1713123801974,-464.04,0.00022537,2]
[322617472,1713123802001,-464.04,0.00022543,2]
[322617473,1713123802025,-250.0,0.00022548,2]
[322617474,1713123802050,-464.04,0.00022549,2]
[322617475,1713123802077,-464.04,0.00022555,2]
[322617476,1713123802101,-464.04,0.00022561,2]
[322617477,1713123802126,-464.04,0.00022567,2]
[322617478,1713123802151,-464.04,0.00022572,2]
[322617479,1713123802175,-464.04,0.00022578,2]
[322617480,1713123802200,-464.04,0.00022584,2]
[322617481,1713123802225,-464.04,0.0002259,2]
[322617482,1713123802250,-464.04,0.00022596,2]
[322617483,1713123802275,-464.04,0.00022602,2]
[322617484,1713123802300,-500.0,0.000227,2]
[322617485,1713123802326,-2177.96914085,0.0002274,2]
[322617486,1713123802349,-311.46,0.0002274,2]
[322617487,1713123802373,-1545.92,0.0002274,2]
[322617488,1713123802398,-13910.74,0.0002274,2]
[322617489,1713123802422,-801.82,0.0002274,2]
[322617490,1713123802446,-23900.0,0.00022741,2]
[322617491,1713123802473,-743.21,0.00022822,2]
[322617492,1713123802497,-1385.61,0.00022825,2]
[322617493,1713123802523,-743.21,0.00022885,2]
[322617494,1713123802548,-200.0,0.00022941,2]
[322617495,1713123802576,-743.21,0.00022947,2]
[322617496,1713123802599,-224.92,0.00022975,2]
[322617497,1713123802624,-1300.0,0.00023,3]
[322617498,1713123884168,-715.48314253,0.00021399,2]
[322617499,1713123884193,-1969.0,0.000214,2]
[322617503,1713123925579,195.853664,0.0002137,2]
[322617506,1713123951935,627.47391245,0.0002137,2]
[322617507,1713123954510,155.0,0.0002137,2]
[322617508,1713123961570,2210.58782681,0.0002137,2]
[322617509,1713123965820,326.91390838,0.0002137,2]
[322617510,1713123967695,155.0,0.0002137,2]
[322617511,1713123979565,2210.58782681,0.0002137,2]
[322617512,1713123983636,326.91390838,0.0002137,2]
[322617513,1713123993743,155.0,0.0002137,2]
[322617514,1713124000188,2210.58782681,0.0002137,2]
[322617515,1713124005647,326.91390838,0.0002137,2]
[322617516,1713124009702,155.0,0.0002137,2]
[322617517,1713124019849,2210.58782681,0.0002137,2]
[322617518,1713124023715,326.91390838,0.0002137,2]
[322617519,1713124023962,-715.48314253,0.00021977,2]
[322617520,1713124023986,-195.853664,0.00022192,2]
[322617521,1713124024015,-537.29485027,0.00022489,2]
[322617522,1713124024038,-150.0,0.0002249,2]
[322617523,1713124024062,-419.04,0.000229,2]
[322617524,1713124024087,-23900.0,0.000229,2]
[322617525,1713124024113,-250.0,0.00022927,2]
[322617526,1713124024137,-150.0,0.00022986,2]
[322617527,1713124024162,-839.64535407,0.00022999,2]
[322617528,1713124024186,-150.0,0.00022999,2]
[322617529,1713124024210,-150.0,0.00022999,2]
[322617530,1713124026859,949.56,0.00021,2]
[322617531,1713124027706,155.0,0.0002137,2]
[322617553,1713124035976,899.21028899,0.0002137,2]
[322617557,1713124040355,326.91390838,0.0002137,2]
[322617558,1713124044480,155.0,0.0002137,2]
[322617559,1713124053672,-432.58416381,0.00021975,2]
[322617560,1713124053698,-743.21,0.0002301,2]
[322617561,1713124053722,-195.853664,0.00023014,2]
[322617562,1713124053745,-166.6,0.00023038,2]
[322617563,1713124053770,-743.21,0.00023073,2]
[322617564,1713124053796,-200.0,0.00023109,2]
[322617565,1713124053821,-743.21,0.00023135,2]
[322617566,1713124053846,-923.4,0.00023143,2]
[322617567,1713124053871,-743.21,0.00023198,2]
[322617568,1713124053896,-165.49925274,0.00023198,7]
[322617569,1713124053920,-473.09086858,0.00023198,2]
[322617570,1713124053947,-388.7283438,0.00023198,2]
[322617571,1713124060692,326.91390838,0.0002137,2]
[322617572,1713124063812,155.0,0.0002137,2]
[322617573,1713124079738,217.89235817,0.0002137,2]
[322617574,1713124083707,326.91390838,0.0002137,2]
[322617575,1713124101710,326.91390838,0.0002137,2]
[322617576,1713124121672,326.91390838,0.0002137,2]
[322617577,1713124135825,156.72,0.0001865,2]
[322617578,1713124144041,198.74695538,0.0002137,2]
[322617619,1713124232918,-186.060981,0.00021644,2]
[322617620,1713124232928,-133.43936076,0.00022466,2]
[322617621,1713124232941,-52.62162024,0.00022466,2]
[322617622,1713124232951,-1000.0,0.00022952,2]
[322617623,1713124232961,-743.21,0.0002326,2]
[322617624,1713124232971,-949.56,0.00023263,2]
[322617625,1713124232980,-475.00837973,0.00023283,2]
[322617626,1713124233048,-411.65162027,0.00023283,2]
[322617627,1713124233058,-186.060981,0.00023288,2]
[322617628,1713124233067,-160.01,0.00023313,2]
[322617629,1713124233077,-743.21,0.00023323,2]
[322617630,1713124233087,-250.0,0.00023339,2]
[322617631,1713124233096,-743.21,0.00023386,2]
[322617632,1713124233106,-150.0,0.00023445,2]
[322617633,1713124233115,-10000.0,0.00023446,2]
[322617634,1713124233125,-743.21,0.00023448,2]
[322617635,1713124233134,-499.99,0.00023511,2]
[322617636,1713124233143,-150.99,0.00023511,2]
[322617637,1713124233153,-743.21,0.00023511,2]
[322617638,1713124233163,-743.21,0.00023573,2]
[322617639,1713124233172,-150.99,0.00023636,2]
[322617640,1713124233182,-743.21,0.00023636,2]
[322617641,1713124233191,-743.21,0.00023699,2]
[322617642,1713124233200,-743.21,0.00023761,2]
[322617643,1713124233210,-743.21,0.00023824,2]
[322617644,1713124233219,-743.21,0.00023886,2]
[322617645,1713124233228,-5894.1,0.00023886,2]
[322617646,1713124233237,-300.0,0.00023918,2]
[322617647,1713124233247,-743.21,0.00023949,2]
[322617648,1713124233256,-743.21,0.00024012,2]
[322617649,1713124233266,-186.060981,0.0002411,2]
[322617650,1713124233275,-802.15646387,0.00024321,2]
[322617651,1713124233284,-269.611831,0.00024418,2]
[322617652,1713124233294,-2512.15986304,0.00024419,2]
[322617653,1713124233303,-208.59453232,0.00024419,2]
[322617654,1713124233313,-155.0,0.00024419,2]
[322617655,1713124233323,-477.98841909,0.00024419,2]
[322617656,1713124233333,-640.69289231,0.00024419,2]
[322617657,1713124233342,-155.0,0.00024419,2]
[322617658,1713124233351,-405.1994349,0.00024419,2]
[322617659,1713124233361,-215.75624408,0.00024419,2]
[322617660,1713124233370,-155.0,0.00024419,2]
[322617661,1713124233380,-342.88812472,0.00024419,2]
[322617662,1713124233389,-200.0,0.00024419,2]
[322617663,1713124233398,-362.75793443,0.00024419,2]
[322617664,1713124233408,-200.04259109,0.00024419,2]
[322617665,1713124233417,-1297.79891384,0.00024419,2]
[322617666,1713124233428,-157.04510012,0.00024419,2]
[322617667,1713124233441,-155.0,0.00024419,2]
[322617668,1713124233451,-551.36056667,0.00024419,2]
[322617669,1713124233460,-155.0,0.00024419,2]
[322617670,1713124233469,-5539.30222896,0.00024419,2]
[322617671,1713124233479,-236.43311706,0.00024419,2]
[322617672,1713124233489,-407.90695941,0.00024419,2]
[322617673,1713124233499,-376.34801074,0.00024419,2]
[322617674,1713124233509,-296.28666493,0.00024419,2]
[322617675,1713124233519,-155.000035,0.00024419,2]
[322617676,1713124233530,-155.0,0.00024419,2]
[322617677,1713124233539,-325.27031537,0.00024419,2]
[322617678,1713124233549,-174.12211115,0.00024419,2]
[322617679,1713124233560,-694.844659,0.00024419,2]
[322617680,1713124233571,-378.0869843,0.00024419,10]
[322617681,1713124233582,-703.0,0.00024419,2]
[322617682,1713124233596,-302.86916616,0.0002442,2]
[322617683,1713124233607,-4326.39237795,0.0002442,2]
[322617684,1713124233619,-2291.0,0.00024421,2]
[322617685,1713124233629,-461.0,0.00024421,2]
[322617686,1713124233641,-968.0,0.00024421,2]
[322617687,1713124233651,-1426.138,0.00024421,2]
[322617688,1713124233661,-545.379,0.00024421,2]
[322617689,1713124233672,-1261.0,0.00024421,2]
[322617690,1713124233686,-807.0,0.00024421,2]
[322617691,1713124233696,-283.67,0.00024421,2]
[322617692,1713124233706,-622.608,0.00024421,2]
[322617693,1713124233715,-436.0,0.00024421,2]
[322617694,1713124233725,-1948.0,0.00024421,2]
[322617695,1713124233735,-1145.879,0.00024421,2]
[322617696,1713124233744,-1472.0,0.00024421,2]
[322617697,1713124233753,-3043.0,0.00024421,2]
[322617698,1713124233764,-154.168,0.00024421,2]
[322617699,1713124233773,-432.715,0.00024421,2]
[322617700,1713124233782,-2440.0,0.00024421,2]
[322617701,1713124233792,-289.272,0.00024421,2]
[322617702,1713124233802,-1667.217,0.00024421,2]
[322617703,1713124233811,-449.469,0.00024421,2]
[322617704,1713124233820,-215.0,0.00024421,2]
[322617705,1713124233830,-355.0,0.00024421,2]
[322617706,1713124233839,-4803.0,0.00024421,2]
[322617707,1713124233848,-5719.0,0.00024421,2]
[322617708,1713124233858,-1315.0,0.00024421,2]
[322617709,1713124233867,-200.0,0.00024421,2]
[322617710,1713124233876,-151.0,0.00024421,2]
[322617711,1713124233886,-151.153,0.00024421,2]
[322617712,1713124233895,-37623.0,0.00024421,2]
[322617713,1713124233904,-153.009,0.00024421,2]
[322617714,1713124233916,-156.408,0.00024421,2]
[322617715,1713124233925,-150.0,0.00024421,2]
[322617716,1713124233937,-1054.0,0.00024421,2]
[322617717,1713124233947,-189.2562566,0.00024649,2]
[322617718,1713124233958,-348.6267,0.000247,2]
[322617719,1713124233969,-255.7749,0.000247,2]
[322617720,1713124233981,-811.48322758,0.000247,2]
[322617721,1713124233992,-1998.95566924,0.000248,2]
[322617722,1713124234002,-1000.0,0.000248,2]
[322617723,1713124234012,-29861.9285,0.000248,2]
[322617724,1713124234022,-1000.0,0.000248,2]
[322617725,1713124234033,-7718.3658,0.000248,2]
[322617726,1713124234043,-2500.0,0.000248,2]
[322617727,1713124234054,-213.6134241,0.00024819,2]
[322617728,1713124234063,-3078.21068361,0.00024898,2]
[322617729,1713124234073,-273.17281789,0.00024899,2]
[322617730,1713124234082,-265.12092461,0.00024899,2]
[322617731,1713124234091,-210.24561399,0.00024899,2]
[322617732,1713124234100,-216.7502566,0.00024899,2]
[322617733,1713124234109,-245000.0,0.000249,2]
[322617734,1713124234119,-186.060981,0.00024932,2]
[322617735,1713124234129,-500.0,0.00024999,2]
[322617736,1713124234138,-500.0,0.00024999,2]
[322617737,1713124234147,-345.3490955,0.00024999,2]
[322617738,1713124234158,-2605.45039561,0.00025,2]
[322617739,1713124234168,-1350.0,0.00025,3]
[322617740,1713124234177,-178.8191759,0.00025,2]
[322617741,1713124234189,-155.0,0.00025,2]
[322617742,1713124234199,-155.65264416,0.00025,2]
[322617743,1713124234209,-1362.81977952,0.00025,2]
[322617744,1713124234218,-7498.91211883,0.00025,2]
[322617745,1713124234297,-7603.85073837,0.00025,2]
[322617746,1713124234309,-867.67329241,0.00025,2]
[322617747,1713124234341,-442.695,0.00025,2]
[322617748,1713124234353,-11839.3002,0.00025,2]
[322617778,1713124240279,-158.29825462,0.0002316,2]
[322617779,1713124240288,-10000.0,0.00023446,2]
[322617780,1713124240298,-250.0,0.00024421,2]
[322617781,1713124240308,-500.0,0.00024658,2]
[322617782,1713124240317,-4391.70174538,0.00025,2]
[322617783,1713124240406,-385.46466382,0.00025,2]
[322617784,1713124240433,-1932.71600611,0.00025,2]
[322617785,1713124240462,-667.09262,0.00025,2]
[322617787,1713124240543,-380.04,0.00025,2]
[322617788,1713124240569,-82946.84116985,0.00025,2]
[322617789,1713124240579,-563.08685838,0.00025,2]
[322617790,1713124240588,-802.15646386,0.00025163,2]
[322617791,1713124240599,-300.0,0.00025287,2]
[322617792,1713124240608,-423.43693325,0.00025339,2]
[322617793,1713124240617,-811.4832275,0.000255,2]
[322617794,1713124240626,-150.0,0.000255,2]
[322617795,1713124240637,-949.56,0.00025527,2]
[322617796,1713124240646,-213.61342403,0.00025545,2]
[322617797,1713124240655,-186.060981,0.00025753,2]
[322617798,1713124240664,-210.0,0.00025789,2]
[322617799,1713124240674,-1000.0,0.00025821,2]
[322617800,1713124240684,-923.4,0.00025883,2]
[322617801,1713124240694,-150.0,0.00026,2]
[322617802,1713124240704,-802.15646386,0.00026005,2]
[322617803,1713124240713,-213.61342403,0.00026271,3]
[322617804,1713124240722,-811.4832275,0.000263,2]
[322617805,1713124240730,-379.99,0.00026325,2]
[322617806,1713124240740,-380.0,0.00026325,2]
[322617807,1713124240750,-380.0,0.00026327,2]
[322617808,1713124240759,-233.59060385,0.00026331,2]
[322617809,1713124240769,-380.0,0.00026344,2]
[322617810,1713124240779,-380.01,0.00026361,2]
[322617811,1713124240788,-287.43,0.00026369,2]
[322617812,1713124240798,-379.99,0.0002637,2]
[322617813,1713124240808,-150.0,0.000265,2]
[322617814,1713124240817,-233.59060385,0.00026512,2]
[322617815,1713124240826,-186.060981,0.00026575,2]
[322617816,1713124240836,-233.59060385,0.00026693,2]
[322617817,1713124240845,-802.15646386,0.00026847,2]
[322617818,1713124240855,-233.59060385,0.00026875,2]
[322617819,1713124240864,-213.61342403,0.00026997,3]
[322617820,1713124240873,-1400.0,0.00027,3]
[322617821,1713124240882,-188.56727963,0.00027,4]
[322617822,1713124240891,-150.0,0.00027,2]
[322617823,1713124240901,-200.0,0.00027054,2]
[322617824,1713124240910,-233.59060385,0.00027056,2]
[322617825,1713124240919,-811.4832275,0.000271,2]
[322617826,1713124240929,-233.59060385,0.00027237,2]
[322617827,1713124240939,-186.060981,0.00027397,2]
[322617828,1713124240949,-322.12,0.00027397,2]
[322617829,1713124240959,-2000.0,0.00027397,2]
[322617830,1713124240969,-298.55,0.00027397,2]
[322617831,1713124240979,-486.10529255,0.000274,2]
[322617832,1713124240988,-166.79203,0.00027411,2]
[322617833,1713124240998,-233.59060385,0.00027418,2]
[322617834,1713124241008,-2291.0,0.00027421,2]
[322617835,1713124241017,-461.0,0.00027421,2]
[322617836,1713124241027,-968.0,0.00027421,2]
[322617837,1713124241036,-1391.0,0.00027421,2]
[322617838,1713124241045,-541.0,0.00027421,2]
[322617839,1713124241055,-1261.0,0.00027421,2]
[322617840,1713124241064,-188.569,0.00027421,2]
[322617841,1713124241074,-280.0,0.00027421,2]
[322617842,1713124241083,-436.0,0.00027421,2]
[322617843,1713124241093,-1948.0,0.00027421,2]
[322617844,1713124241102,-1140.0,0.00027421,2]
[322617845,1713124241111,-1472.0,0.00027421,2]
[322617846,1713124241120,-3043.0,0.00027421,2]
[322617847,1713124241129,-150.0,0.00027421,2]
[322617848,1713124241139,-399.0,0.00027421,2]
[322617849,1713124241148,-2440.0,0.00027421,2]
[322617850,1713124241158,-150.0,0.00027421,2]
[322617851,1713124241166,-1637.0,0.00027421,2]
[322617852,1713124241176,-443.0,0.00027421,2]
[322617853,1713124241185,-214.0,0.00027421,2]
[322617854,1713124241195,-355.0,0.00027421,2]
[322617855,1713124241204,-4803.0,0.00027421,2]
[322617856,1713124241213,-5719.0,0.00027421,2]
[322617857,1713124241222,-1315.0,0.00027421,2]
[322617858,1713124241232,-37623.0,0.00027421,2]
[322617859,1713124241241,-150.0,0.00027421,2]
[322617860,1713124241251,-1676.5,0.00027472,2]
[322617861,1713124241260,-150.0,0.000275,2]
[322617862,1713124241270,-233.59060385,0.00027599,2]
[322617863,1713124241279,-802.15646386,0.00027689,2]
[322617864,1713124241288,-213.61342403,0.00027722,3]
[322617865,1713124241298,-233.59060385,0.00027781,2]
[322617866,1713124241307,-949.56,0.00027791,2]
[322617867,1713124241317,-150.0,0.0002789,2]
[322617868,1713124241326,-811.4832275,0.000279,2]
[322617869,1713124241336,-150.0,0.00027914,2]
[322617870,1713124241346,-150.0,0.00027914,2]
[322617871,1713124241355,-150.0,0.00027916,2]
[322617872,1713124241365,-150.0,0.00027919,2]
[322617873,1713124241374,-150.0,0.00027925,2]
[322617874,1713124241383,-150.0,0.00027927,2]
[322617875,1713124241393,-150.0,0.00027932,2]
[322617876,1713124241402,-150.0,0.00027935,2]
[322617877,1713124241411,-150.0,0.00027936,2]
[322617878,1713124241420,-150.0,0.00027937,2]
[322617879,1713124241430,-150.0,0.0002794,2]
[322617880,1713124241439,-1500.0,0.00027941,2]
[322617881,1713124241448,-150.0,0.00027943,2]
[322617882,1713124241458,-150.0,0.00027944,2]
[322617883,1713124241467,-150.0,0.00027947,2]
[322617884,1713124241476,-176.26038041,0.00027947,2]
[322617885,1713124241486,-150.0,0.00027948,2]
[322617886,1713124241496,-150.0,0.00027948,2]
[322617887,1713124241505,-150.0,0.00027948,2]
[322617888,1713124241514,-150.0,0.00027949,2]
[322617889,1713124241525,-150.0,0.00027949,2]
[322617890,1713124241534,-300.0,0.00027951,2]
[322617891,1713124241543,-150.0,0.00027953,2]
[322617892,1713124241553,-150.0,0.00027956,2]
[322617893,1713124241562,-233.59060385,0.00027962,2]
[322617894,1713124241572,-150.0,0.00027963,2]
[322617895,1713124241583,-150.0,0.00027964,2]
[322617896,1713124241594,-150.0,0.00027966,2]
[322617897,1713124241606,-150.0,0.00027966,2]
[322617898,1713124241616,-150.0,0.00027967,2]
[322617899,1713124241625,-150.0,0.0002797,2]
[322617900,1713124241637,-150.0,0.00027972,2]
[322617901,1713124241646,-150.0,0.00027981,2]
[322617902,1713124241655,-150.0,0.00027985,2]
[322617903,1713124241664,-150.0,0.00027985,2]
[322617904,1713124241674,-150.0,0.00027988,2]
[322617905,1713124241684,-150.0,0.00027992,2]
[322617906,1713124241696,-20189.0893382,0.00028,2]
[322617907,1713124241706,-150.0,0.00028,2]
[322617908,1713124241715,-709.72999769,0.00028,2]
[322617909,1713124241725,-23943.71309022,0.00028,2]
[322617910,1713124241734,-1372.13562102,0.00028008,2]
[322617911,1713124241744,-150.0,0.00028008,2]
[322617912,1713124241753,-150.0,0.00028009,2]
[322617913,1713124241762,-150.0,0.0002801,2]
[322617914,1713124241771,-150.0,0.0002801,2]
[322617915,1713124241781,-150.0,0.00028011,2]
[322617916,1713124241791,-150.0,0.00028013,2]
[322617917,1713124241800,-150.0,0.00028015,2]
[322617918,1713124241809,-150.0,0.00028015,2]
[322617919,1713124241818,-150.0,0.00028016,2]
[322617920,1713124241827,-150.0,0.0002802,2]
[322617921,1713124241837,-150.0,0.00028024,2]
[322617922,1713124241846,-150.0,0.00028028,2]
[322617923,1713124241855,-150.0,0.00028039,2]
[322617924,1713124241864,-150.0,0.00028043,2]
[322617925,1713124241873,-300.0,0.00028049,2]
[322617926,1713124241884,-150.0,0.00028049,2]
[322617927,1713124241893,-150.0,0.0002805,2]
[322617928,1713124241902,-150.0,0.00028051,2]
[322617929,1713124241911,-150.0,0.00028054,2]
[322617930,1713124241921,-150.0,0.0002806,2]
[322617931,1713124241930,-150.0,0.0002806,2]
[322617932,1713124241939,-150.0,0.00028063,2]
[322617933,1713124241948,-150.0,0.00028065,2]
[322617934,1713124241957,-150.0,0.00028066,2]
[322617935,1713124241967,-150.0,0.00028069,2]
[322617936,1713124241976,-300.0,0.00028071,2]
[322617937,1713124241985,-150.0,0.00028072,2]
[322617938,1713124241995,-150.0,0.00028073,2]
[322617939,1713124242005,-150.0,0.00028074,2]
[322617940,1713124242016,-150.0,0.00028076,2]
[322617941,1713124242025,-150.0,0.00028078,2]
[322617942,1713124242034,-150.0,0.00028083,2]
[322617943,1713124242044,-150.0,0.00028085,2]
[322617944,1713124242053,-150.0,0.00028087,2]
[322617945,1713124242063,-300.0,0.0002809,2]
[322617946,1713124242073,-150.0,0.00028093,2]
[322617947,1713124242082,-150.0,0.00028097,2]
[322617948,1713124242091,-150.0,0.00028098,2]
[322617949,1713124242100,-150.0,0.000281,2]
[322617950,1713124242110,-150.0,0.000281,2]
[322617951,1713124242119,-39991.1093,0.00028105,2]
[322617952,1713124242129,-500.0,0.00028105,2]
[322617953,1713124242139,-100000.0,0.00028105,2]
[322617954,1713124242148,-7500.0,0.00028105,2]
[322617955,1713124242158,-152.82750608,0.00028106,2]
[322617956,1713124242167,-518.79565604,0.00028106,2]
[322617957,1713124242176,-150.0,0.00028106,2]
[322617958,1713124242185,-178.03110272,0.00028107,2]
[322617959,1713124242195,-167.0089345,0.00028108,2]
[322617960,1713124242204,-266.15986043,0.00028108,2]
[322617961,1713124242214,-1390.7993705,0.00028108,2]
[322617962,1713124242223,-173.75586911,0.00028108,2]
[322617963,1713124242232,-184.24281591,0.00028108,2]
[322617964,1713124242242,-150.0,0.00028112,2]
[322617965,1713124242251,-150.0,0.00028112,2]
[322617966,1713124242260,-150.0,0.00028115,2]
[322617967,1713124242271,-150.0,0.00028116,2]
[322617968,1713124242280,-150.0,0.00028117,2]
[322617969,1713124242290,-150.0,0.00028117,2]
[322617970,1713124242299,-150.0,0.00028117,2]
[322617971,1713124242308,-150.0,0.00028118,2]
[322617972,1713124242318,-150.0,0.00028122,2]
[322617973,1713124242327,-150.0,0.00028127,2]
[322617974,1713124242337,-150.0,0.0002813,2]
[322617975,1713124242346,-150.0,0.0002813,2]
[322617976,1713124242356,-150.0,0.00028135,2]
[322617977,1713124242365,-150.0,0.00028137,2]
[322617978,1713124242374,-150.0,0.00028137,2]
[322617979,1713124242384,-150.0,0.00028138,2]
[322617980,1713124242393,-150.0,0.00028139,2]
[322617981,1713124242403,-150.0,0.0002814,2]
[322617982,1713124242412,-1500.0,0.00028141,2]
[322617983,1713124242422,-233.59060385,0.00028143,2]
[322617984,1713124242432,-150.0,0.00028144,2]
[322617985,1713124242442,-150.0,0.00028146,2]
[322617986,1713124242451,-150.0,0.00028149,2]
[322617987,1713124242460,-150.0,0.00028151,2]
[322617988,1713124242469,-150.0,0.00028158,2]
[322617989,1713124242479,-150.0,0.00028159,2]
[322617990,1713124242488,-150.0,0.0002816,2]
[322617991,1713124242497,-150.0,0.00028163,2]
[322617992,1713124242506,-150.0,0.00028166,2]
[322617993,1713124242515,-150.0,0.00028167,2]
[322617994,1713124242525,-150.0,0.00028167,2]
[322617995,1713124242533,-1134.104688,0.00028173,2]
[322617996,1713124242543,-150.0,0.00028173,2]
[322617997,1713124242552,-150.0,0.00028175,2]
[322617998,1713124242561,-150.0,0.00028177,2]
[322617999,1713124242570,-150.0,0.00028178,2]
[322618000,1713124242579,-3054.51728002,0.00028178,2]
[322618001,1713124242589,-536.27398007,0.0002818,2]
[322618002,1713124242601,-150.0,0.0002818,2]
[322618003,1713124242610,-150.0,0.0002818,2]
[322618004,1713124242620,-1500.0,0.00028181,2]
[322618005,1713124242629,-150.0,0.00028183,2]
[322618006,1713124242639,-150.0,0.00028183,2]
[322618007,1713124242648,-150.0,0.00028185,2]
[322618008,1713124242657,-152.13394888,0.00028189,2]
[322618009,1713124242667,-150.0,0.00028191,2]
[322618010,1713124242678,-166.79203,0.00028198,2]
[322618011,1713124242688,-783.23178721,0.00028204,2]
[322618012,1713124242698,-1255.07550829,0.00028204,2]
[322618013,1713124242707,-164.20368944,0.00028204,2]
[322618014,1713124242717,-185.62038465,0.00028204,2]
[322618015,1713124242726,-705.0,0.00028205,5]
[322618016,1713124242736,-2031.87318928,0.00028205,2]
[322618017,1713124242745,-155.0,0.00028205,2]
[322618018,1713124242754,-537.57984342,0.00028205,2]
[322618019,1713124242764,-198.36302852,0.00028205,2]
[322618020,1713124242774,-155.0,0.00028205,2]
[322618022,1713124242783,-1127.05013364,0.00028205,2]
[322618024,1713124242793,-155.0,0.00028205,2]
[322618027,1713124242803,-2983.54677449,0.00028205,2]
[322618029,1713124242813,-386551.30491313,0.00028205,2]
[322618032,1713124242822,-11983.3089332,0.00028205,2]
[322618035,1713124242832,-140421.6100797,0.00028205,2]
[322618038,1713124242841,-409.54524267,0.00028206,2]
[322618040,1713124242850,-262637.69395143,0.00028206,2]
[322618087,1713124243654,-596.04655466,0.00028206,2]
[322618088,1713124244200,-223.772,0.00024421,2]
[322618089,1713124244210,-1117.5302172,0.00028205,2]
[322618090,1713124244219,-2368.00158285,0.00028206,2]
[322618091,1713124244230,-500.0,0.00028206,2]
[322618092,1713124244241,-137185.39999858,0.00028206,2]
[322618093,1713124244253,-24263.73465755,0.00028206,2]
[322618094,1713124244295,-3183.80000012,0.00028206,2]
[322618095,1713124244307,-700.0,0.00028206,2]
[322618096,1713124244318,-1006.632,0.00028206,2]
[322618097,1713124244524,-555.39757593,0.00028206,2]
[322618098,1713124246881,-150.0,0.00027421,2]
[322618099,1713124246890,-150.0,0.00027915,2]
[322618100,1713124246899,-150.0,0.00027918,2]
[322618101,1713124246908,-150.0,0.00027921,2]
[322618102,1713124246917,-150.0,0.00027925,2]
[322618103,1713124246927,-150.0,0.00027926,2]
[322618104,1713124246936,-150.0,0.00027933,2]
[322618105,1713124246945,-150.0,0.00027938,2]
[322618106,1713124246954,-150.0,0.00027947,2]
[322618107,1713124246963,-150.0,0.00027954,2]
[322618108,1713124246972,-150.0,0.00027965,2]
[322618109,1713124246982,-150.0,0.00027967,2]
[322618110,1713124246991,-150.0,0.00027971,2]
[322618111,1713124247000,-150.0,0.00027973,2]
[322618112,1713124247009,-150.0,0.00027979,2]
[322618113,1713124247018,-150.0,0.00027981,2]